bitfinex-derivatives/quotes_SOLF0:USTF0_20251125
["timestamp","ask_amount","ask_price","bid_price","bid_amount"]
[1764094758680,10.92189029,137.52,137.51,3.11913543]
[1764094759278,4.54189029,137.52,137.51,3.11913543]
[1764094760069,0.05529955,137.54,137.51,3.11913543]
[1764094762083,31.87669355,137.58,137.51,3.11913543]
[1764094762275,6.63669355,137.61,137.52,1.82]
[1764094762478,2.95,137.61,137.6,1.79055197]
[1764094763273,9.70968218,137.61,137.6,1.79055197]
[1764094763474,4.41,137.61,137.59,0.04669904]
[1764094763772,2.95,137.59,137.49,1.87]
[1764094763980,9.71072078,137.58,137.49,1.87]
[1764094764173,2.95,137.58,137.49,1.87]
[1764094764375,2.95,137.55,137.49,1.87]
[1764094764775,0.04864418,137.53,137.51,0.04761314]
[1764094765482,0.04864418,137.53,137.51,1.91761314]
[1764094766776,25.22,137.57,137.51,1.91761314]
[1764094767875,0.05575674,137.55,137.51,1.91761314]
[1764094768484,6.76072078,137.62,137.52,1.87]
[1764094768778,2.95,137.62,137.6,1.7893671]
[1764094768978,2.95,137.62,137.61,1.7893671]
[1764094769375,2.95,137.62,137.6,0.04641778]
[1764094769572,0.05033869,137.62,137.61,1.78799975]
[1764094769773,3.00033869,137.62,137.6,0.05540481]
[1764094771179,0.05033869,137.62,137.61,1.78713949]
[1764094771581,0.05033869,137.62,137.6,3.12540481]
[1764094771977,3.00033869,137.62,137.6,0.05540481]
[1764094772180,3.00033869,137.62,137.61,1.7862545]
[1764094772382,3.00033869,137.62,137.6,0.05540481]
[1764094772383,0.05033869,137.62,137.6,0.05540481]
[1764094772881,3.00033869,137.62,137.6,0.05540481]
[1764094773782,3.00033869,137.62,137.61,1.78491865]
[1764094774487,3.00033869,137.62,137.6,0.05540481]
[1764094774984,2.95,137.61,137.45,3.07]
[1764094775290,2.95,137.59,137.58,1.78590323]
[1764094776787,2.95,137.59,137.57,0.04702794]
[1764094776980,2.95,137.58,137.48,3.07]
[1764094777685,2.95,137.57,137.48,3.07]
[1764094777875,0.04938928,137.54,137.51,0.05409188]
[1764094778882,0.04938928,137.54,137.51,3.12409188]
[1764094782091,2.99938928,137.54,137.51,0.05409188]
[1764094782487,0.04938928,137.54,137.51,3.12409188]
[1764094783390,2.99938928,137.54,137.51,0.05409188]
[1764094784089,9.54668928,137.54,137.51,0.05409188]
[1764094784281,0.04938928,137.54,137.51,0.05409188]
[1764094784484,0.04938928,137.54,137.51,3.12409188]
[1764094786695,2.95,137.6,137.53,3.07]
[1764094786999,6.5454,137.58,137.53,3.07]
[1764094787199,9.4954,137.58,137.53,3.07]
[1764094787392,6.5454,137.58,137.53,3.07]
[1764094787798,0.05129833,137.57,137.55,2.99]
[1764094787998,0.05030013,137.57,137.55,3.04196787]
[1764094788198,3.20030013,137.57,137.55,0.05196787]
[1764094788694,0.05030013,137.57,137.55,0.05196787]
[1764094788894,6.59610013,137.57,137.55,3.04196787]
[1764094789096,0.05030013,137.57,137.55,3.04196787]
[1764094789891,3.15,137.63,137.55,3.04196787]
[1764094790097,3.15,137.63,137.62,1.78714052]
[1764094790695,3.15,137.62,137.55,2.99]
[1764094790900,0.05604399,137.6,137.57,0.05315229]
[1764094791292,0.05604399,137.6,137.57,3.04315229]
[1764094792297,3.20604399,137.6,137.57,0.05315229]
[1764094793103,0.05604399,137.6,137.57,3.04315229]
[1764094797993,0.05604399,137.6,137.58,2.99]
[1764094798602,25.2,137.65,137.6,2.99]
[1764094798807,3.15,137.64,137.6,2.99]
[1764094799302,25.2,137.65,137.6,2.99]
[1764094799504,0.04793935,137.64,137.61,3.03822366]
[1764094800304,3.19793935,137.64,137.61,0.04822366]
[1764094801606,9.53564179,137.64,137.61,0.04822366]
[1764094801795,13.91399998,137.63,137.62,1.79261454]
[1764094801994,3.17,137.62,137.61,0.04822366]
[1764094802195,8.46259234,137.62,137.61,0.04822366]
[1764094802396,5.29259234,137.62,137.61,0.04822366]
[1764094802597,3.21793935,137.64,137.61,0.04822366]
[1764094802805,3.17,137.62,137.61,0.04822366]
[1764094803010,0.04793935,137.64,137.61,3.04822366]
[1764094803710,3.21793935,137.64,137.61,0.04822366]
[1764094804808,3.17,137.62,137.61,0.04822366]
[1764094805001,8.46905448,137.62,137.61,0.04822366]
[1764094806610,8.46905448,137.62,137.5,101.8704]
[1764094806611,3.17,137.61,137.52,3.0]
[1764094806812,3.17,137.58,137.52,3.0]
[1764094807702,0.0495149,137.56,137.54,3.05407627]
[1764094809000,5.30118951,137.61,137.54,3.05407627]
[1764094809212,25.2,137.63,137.57,3.0]
[1764094809412,5.29938412,137.62,137.57,3.0]
[1764094809606,25.2,137.63,137.57,3.0]
[1764094809810,5.29938337,137.62,137.57,3.0]
[1764094810016,0.05465671,137.61,137.6,3.0]
[1764094810210,0.05280427,137.62,137.6,3.0]
[1764094811215,0.05280427,137.62,137.61,3.0]
[1764094811410,0.05280427,137.62,137.6,9.5443]
[1764094811711,0.05280427,137.62,137.61,3.0]
[1764094816712,0.05280427,137.62,137.6,6.5443]
[1764094816912,0.05280427,137.62,137.6,9.5443]
[1764094817610,0.05280427,137.62,137.6,6.5443]
[1764094818217,0.05280427,137.62,137.6,9.6543]
[1764094818418,0.05280427,137.62,137.6,3.11]
[1764094819020,3.03280427,137.62,137.59,3.15907157]
[1764094819410,3.03280427,137.62,137.59,0.04907157]
[1764094819604,8.28092226,137.61,137.6,1.79409783]
[1764094819805,2.98,137.6,137.52,3.11]
[1764094820005,20.29114079,137.59,137.52,9.6581]
[1764094820212,5.30092226,137.58,137.52,9.6581]
[1764094820417,9.525,137.59,137.52,9.6581]
[1764094820616,2.98,137.57,137.52,3.11]
[1764094820812,0.04677082,137.56,137.53,3.15862642]
[1764094821013,0.04677082,137.56,137.53,0.04862642]
[1764094821014,3.02677082,137.56,137.53,0.04862642]
[1764094821223,3.02677082,137.56,137.55,1.79561245]
[1764094821520,8.33063176,137.56,137.55,1.79561245]
[1764094821810,8.33063176,137.56,137.53,0.04862642]
[1764094822018,3.02677082,137.56,137.53,0.04862642]
[1764094823009,0.04677082,137.56,137.53,3.15862642]
[1764094823714,0.04677082,137.56,137.54,9.6571]
[1764094824104,0.04677082,137.56,137.55,3.11]
[1764094824515,3.02677082,137.56,137.53,0.04862642]
[1764094824819,0.04677082,137.56,137.53,3.15862642]
[1764094825011,0.04677082,137.56,137.53,9.70622642]
[1764094825217,0.04677082,137.56,137.54,3.11]
[1764094826011,0.04677082,137.56,137.53,0.04862642]
[1764094826214,0.04677082,137.56,137.53,3.15862642]
[1764094826417,0.04677082,137.56,137.53,0.04862642]
[1764094826418,3.02677082,137.56,137.53,0.04862642]
[1764094827620,2.98,137.55,137.53,0.04862642]
[1764094828720,0.04677082,137.56,137.53,0.04862642]
[1764094829016,3.02677082,137.56,137.53,0.04862642]
[1764094830914,9.57307082,137.56,137.55,1.79658915]
[1764094831110,14.87743601,137.56,137.55,1.79658915]
[1764094831510,1.99,137.54,137.53,0.04862642]
[1764094831821,1.94,137.53,137.43,3.11]
[1764094832024,1.94,137.51,137.43,3.11]
[1764094832218,118.97860396,137.52,137.43,3.11]
[1764094832219,1.94,137.49,137.43,3.11]
[1764094832622,2.71897326,137.47,137.45,0.05064168]
[1764094833129,4.65897326,137.47,137.45,0.05064168]
[1764094833921,2.71897326,137.47,137.45,0.05064168]
[1764094834324,0.05053138,137.47,137.45,3.16064168]
[1764094834823,25.2,137.49,137.45,3.16064168]
[1764094835128,8.4879,137.53,137.47,3.11]
[1764094835427,8.4879,137.53,137.52,1.79260346]
[1764094836632,25.25151862,137.54,137.51,0.05436629]
[1764094836821,27.19151862,137.54,137.51,0.05436629]
[1764094838529,27.19151862,137.54,137.53,1.79026099]
[1764094838728,27.19151862,137.54,137.51,0.05436629]
[1764094839232,27.19151862,137.54,137.53,1.7902621]
[1764094839733,27.19151862,137.54,137.51,0.05436629]
[1764094841228,25.25151862,137.54,137.51,3.16436629]
[1764094841435,0.05151862,137.54,137.51,3.16436629]
[1764094843437,1.99151862,137.54,137.51,0.05436629]
[1764094846243,8.53891862,137.54,137.51,0.05436629]
[1764094846434,1.99151862,137.54,137.51,0.05436629]
[1764094847034,1.94,137.53,137.51,0.05436629]
[1764094847637,8.4877,137.53,137.51,0.05436629]
[1764094847840,1.95,137.52,137.51,0.05436629]
[1764094848438,2.00151862,137.54,137.51,0.05436629]
[1764094848644,0.05151862,137.54,137.53,1.79209647]
[1764094848850,0.05151862,137.54,137.51,2.96436629]
[1764094849744,25.2,137.56,137.53,2.91]
[1764094849950,27.15,137.56,137.51,2.96436629]
[1764094850249,27.15,137.56,137.53,2.91]
[1764094850746,27.20267056,137.56,137.53,2.91]
[1764094850949,1.95,137.55,137.51,0.05436629]
[1764094852351,8.4968,137.55,137.51,0.05436629]
[1764094852953,1.95,137.54,137.51,0.05436629]
[1764094853257,25.25267056,137.56,137.51,2.96436629]
[1764094853459,25.25267056,137.56,137.55,1.79287762]
[1764094853756,27.20267056,137.56,137.54,0.05224567]
[1764094854846,25.25267056,137.56,137.54,2.96224567]
[1764094855251,0.05267056,137.56,137.54,2.96224567]
[1764094855456,1.95,137.6,137.54,2.96224567]
[1764094855750,1.95,137.6,137.59,1.79298772]
[1764094855956,27.15,137.61,137.59,1.79298772]
[1764094856257,25.2,137.61,137.54,9.4569]
[1764094856552,25.2,137.61,137.59,1.79359799]
[1764094856757,27.20331104,137.61,137.56,2.9629655]
[1764094857348,27.20331104,137.61,137.57,2.91]
[1764094857853,27.20331104,137.61,137.6,1.7958281]
[1764094858051,32.50575742,137.61,137.6,1.7958281]
[1764094858257,32.50575742,137.61,137.59,0.05401193]
[1764094858258,27.20331104,137.61,137.59,0.05401193]
[1764094858855,27.20331104,137.61,137.6,1.79707979]
[1764094859054,27.20331104,137.61,137.59,0.05401193]
[1764094859948,25.25331104,137.61,137.59,0.05401193]
[1764094860459,1.95,137.6,137.59,0.05401193]
[1764094860655,27.20331104,137.61,137.59,0.05401193]
[1764094860849,25.25331104,137.61,137.59,0.05401193]
[1764094861343,27.20331104,137.61,137.59,0.05401193]
[1764094861545,7.42462138,137.66,137.6,2.91]
[1764094861748,1.95,137.66,137.6,2.91]
[1764094862149,1.95,137.66,137.65,1.79935741]
[1764094862354,0.46,137.65,137.57,2.91]
[1764094862552,0.04944114,137.62,137.6,0.05254738]
[1764094862756,0.04821237,137.62,137.6,0.05481206]
[1764094863158,0.50821237,137.62,137.6,0.05481206]
[1764094864957,25.2,137.65,137.6,2.96481206]
[1764094865259,25.71,137.65,137.64,1.80169404]
[1764094865448,25.71,137.65,137.6,2.91]
[1764094865654,0.51,137.64,137.6,2.91]
[1764094865850,25.2,137.65,137.6,2.91]
[1764094866054,25.2,137.65,137.61,2.96423316]
[1764094866055,0.05448157,137.64,137.61,2.96423316]
[1764094866251,0.56448157,137.64,137.61,0.05423316]
[1764094866856,0.05448157,137.64,137.61,9.50803316]
[1764094867268,0.05448157,137.64,137.62,2.91]
[1764094868564,0.05448157,137.64,137.61,0.05423316]
[1764094868866,0.05448157,137.64,137.61,2.96423316]
[1764094869872,0.56448157,137.64,137.61,0.05423316]
[1764094870066,0.56448157,137.64,137.63,1.79708819]
[1764094870267,0.51,137.63,137.62,1.79708819]
[1764094870567,7.0534,137.62,137.61,0.05423316]
[1764094870763,0.51,137.62,137.61,0.05423316]
[1764094870968,0.56448157,137.64,137.61,0.05423316]
[1764094871174,0.56448157,137.64,137.63,1.7954825]
[1764094871471,0.56448157,137.64,137.61,0.05423316]
[1764094871870,0.56448157,137.64,137.63,1.79432261]
[1764094872078,0.56448157,137.64,137.61,0.05423316]
[1764094872266,0.56448157,137.64,137.63,1.79378392]
[1764094872664,0.56448157,137.64,137.63,1.79360627]
[1764094872865,0.05448157,137.64,137.61,2.96423316]
[1764094873059,0.56448157,137.64,137.61,0.05423316]
[1764094874768,0.56448157,137.64,137.63,1.79224154]
[1764094874959,0.56448157,137.64,137.61,0.05423316]
[1764094875863,0.56448157,137.64,137.63,1.79145888]
[1764094876063,0.56448157,137.64,137.61,0.05423316]
[1764094876269,0.56448157,137.64,137.62,1.7913349]
[1764094876472,0.51,137.63,137.61,0.05423316]
[1764094876780,0.51,137.62,137.61,0.05423316]
[1764094880069,0.51,137.62,137.51,6.5484]
[1764094880070,0.5,137.58,137.49,3.06]
[1764094880271,25.68,137.57,137.49,3.06]
[1764094880473,25.68,137.57,137.56,1.79719203]
[1764094880672,0.5,137.58,137.52,3.06]
[1764094880877,0.5,137.58,137.57,1.79680949]
[1764094881478,25.72624179,137.59,137.57,1.79680949]
[1764094881672,25.72624179,137.59,137.56,0.05271478]
[1764094881673,0.5,137.58,137.56,0.05271478]
[1764094881875,0.5,137.58,137.57,1.79690066]
[1764094882071,25.22624179,137.59,137.56,3.11271478]
[1764094882372,0.5,137.58,137.56,0.05271478]
[1764094882773,25.72624179,137.59,137.56,3.11271478]
[1764094882977,25.22624179,137.59,137.56,3.11271478]
[1764094883877,0.5,137.58,137.56,0.05271478]
[1764094884081,5.81214993,137.57,137.56,0.05271478]
[1764094884273,0.54624179,137.59,137.56,0.05271478]
[1764094884468,0.54624179,137.59,137.57,1.79699628]
[1764094884675,0.54624179,137.59,137.58,1.79699628]
[1764094884875,0.04624179,137.59,137.56,3.11271478]
[1764094886079,10.79409775,137.64,137.57,3.06]
[1764094886280,25.68,137.65,137.63,1.79592751]
[1764094886584,25.18,137.65,137.64,1.79592751]
[1764094886778,25.18,137.65,137.6,3.06]
[1764094887090,0.05227147,137.64,137.62,3.06]
[1764094887971,0.05227147,137.64,137.61,0.04736783]
[1764094888178,7.09477147,137.64,137.63,1.79548155]
[1764094888381,0.5,137.63,137.62,1.79548155]
[1764094888583,5.80983365,137.63,137.62,1.79548155]
[1764094889788,7.09477147,137.64,137.62,1.79548155]
[1764094889981,7.09477147,137.64,137.63,1.79548155]
[1764094890181,12.40634681,137.64,137.63,1.79548155]
[1764094890582,0.5,137.63,137.62,1.79548155]
[1764094890881,5.81157534,137.63,137.62,1.79548155]
[1764094891084,7.0434,137.62,137.61,0.04736783]
[1764094891279,12.35497534,137.62,137.61,0.04736783]
[1764094892085,17.84738114,137.62,137.61,0.04736783]
[1764094892286,12.35497534,137.62,137.61,0.04736783]
[1764094892486,6.9942,137.61,137.54,3.06]
[1764094892687,30.94157534,137.6,137.59,1.80185149]
[1764094892892,30.94157534,137.6,137.54,3.06]
[1764094893188,25.63,137.6,137.54,3.06]
[1764094893575,25.63,137.6,137.59,1.80290583]
[1764094893787,30.95167805,137.6,137.59,1.80290583]
[1764094894982,0.45,137.58,137.56,0.05559245]
[1764094895181,0.45,137.58,137.57,1.80434977]
[1764094895383,5.77398114,137.58,137.57,1.80434977]
[1764094895894,5.77398114,137.58,137.57,1.80438799]
[1764094897392,5.77398114,137.58,137.49,101.8808]
[1764094897393,0.4,137.47,137.39,3.06]
[1764094897688,0.4,137.47,137.32,3.06]
[1764094897689,0.4,137.44,137.32,3.06]
[1764094897884,112.93776399,137.47,137.35,3.06]
[1764094897885,36.29436399,137.47,137.35,3.06]
[1764094898079,10.83253545,137.46,137.35,3.06]
[1764094898284,0.04802791,137.42,137.39,3.10643055]
[1764094901080,0.44802791,137.42,137.41,1.79871748]
[1764094901889,25.72802791,137.42,137.41,1.79871748]
[1764094902085,25.72802791,137.42,137.39,0.04643055]
[1764094902086,0.4,137.41,137.39,0.04643055]
[1764094902992,0.4,137.41,137.4,1.79306998]
[1764094903593,0.04802791,137.42,137.39,3.10643055]
[1764094903790,0.04802791,137.42,137.4,1.79064342]
[1764094904094,0.04802791,137.42,137.41,1.79042784]
[1764094904296,0.44802791,137.42,137.41,1.79042784]
[1764094904494,0.44802791,137.42,137.39,0.04643055]
[1764094904692,0.44802791,137.42,137.4,1.78880922]
[1764094904895,0.44802791,137.42,137.39,0.04643055]
[1764094905095,0.44802791,137.42,137.4,1.7887254]
[1764094905788,0.44802791,137.42,137.39,0.04643055]
[1764094905789,6.60122791,137.42,137.39,0.04643055]
[1764094907493,0.04802791,137.42,137.39,0.04643055]
[1764094907695,0.04802791,137.42,137.4,1.78387713]
[1764094908493,0.04802791,137.42,137.39,0.04643055]
[1764094908894,0.04802791,137.42,137.4,1.7827471]
[1764094909195,0.04802791,137.42,137.39,0.04643055]
[1764094909496,6.60132791,137.42,137.39,0.04643055]
[1764094910497,6.5538,137.41,137.39,0.04643055]
[1764094910699,25.28,137.4,137.39,0.04643055]
[1764094911800,25.28,137.4,137.39,3.17643055]
[1764094911988,25.28,137.4,137.39,0.04643055]
[1764094914399,101.8837,137.49,137.39,3.17643055]
[1764094914597,127.1717,137.48,137.42,1.77927262]
[1764094914897,101.9073,137.46,137.43,1.77890755]
[1764094915200,101.9073,137.46,137.36,3.13]
[1764094915201,101.9148,137.45,137.36,3.13]
[1764094915408,0.04799549,137.42,137.41,1.77902153]
[1764094915605,25.32799549,137.42,137.41,1.77902153]
[1764094915902,25.32799549,137.42,137.39,0.04949043]
[1764094916103,31.88109549,137.42,137.39,0.04949043]
[1764094916602,31.88089549,137.42,137.41,1.77902071]
[1764094918203,31.88089549,137.42,137.39,0.04949043]
[1764094918204,127.26679549,137.42,137.32,3.13]
[1764094918392,101.9432,137.41,137.32,3.13]
[1764094918692,6.5551,137.38,137.32,3.13]
[1764094919297,0.05070039,137.36,137.35,3.13]
[1764094919499,0.0475944,137.37,137.35,3.13]
[1764094919699,25.28,137.39,137.36,3.13]
[1764094920401,21.85,137.45,137.36,3.13]
[1764094920402,6.5533,137.42,137.36,3.13]
[1764094920703,101.909,137.46,137.34,0.0476706]
[1764094920704,0.05444123,137.4,137.39,3.13]
[1764094920907,0.05311675,137.41,137.39,3.13]
[1764094921096,0.04720132,137.41,137.39,3.18450794]
[1764094921695,6.60070132,137.41,137.39,0.05450794]
[1764094922209,6.60070132,137.41,137.4,4.867e-05]
[1764094922904,6.60070132,137.41,137.39,0.05450794]
[1764094923694,101.9805,137.36,137.27,2.94]
[1764094923898,25.28,137.35,137.27,2.94]
[1764094924297,6.5579,137.32,137.27,2.94]
[1764094924494,127.2723,137.35,137.27,2.94]
[1764094924801,127.2723,137.35,137.31,2.94]
[1764094924998,101.9749,137.37,137.31,2.94]
[1764094925195,101.9953,137.34,137.31,2.94]
[1764094925705,6.5574,137.33,137.31,2.94]
[1764094925905,6.61116269,137.33,137.31,2.94]
[1764094926306,6.5582,137.31,137.3,0.04647779]
[1764094927202,0.05376269,137.33,137.3,0.04647779]
[1764094928306,0.05376269,137.33,137.31,2.94]
[1764094935012,5.44356185,137.41,137.31,2.94]
[1764094935013,8.47356185,137.41,137.31,2.94]
[1764094935211,3.03,137.41,137.38,1.78858558]
[1764094935418,3.03,137.41,137.33,2.94]
[1764094935419,3.03,137.41,137.39,1.78858558]
[1764094935915,0.05440832,137.41,137.39,0.05448165]
[1764094936309,0.05440832,137.41,137.39,2.99448165]
[1764094938317,2.99440832,137.41,137.39,0.05448165]
[1764094940219,5.50473016,137.4,137.39,0.05448165]
[1764094940923,8.44473016,137.4,137.39,0.05448165]
[1764094941112,13.74257503,137.4,137.39,0.05448165]
[1764094942417,17.56837143,137.4,137.39,0.05448165]
[1764094944119,10.80257503,137.4,137.39,0.05448165]
[1764094948323,10.80257503,137.4,137.39,3.11448165]
[1764094948631,5.29784487,137.4,137.39,3.11448165]
[1764094949126,0.05440832,137.41,137.39,3.11448165]
[1764094949728,0.05440832,137.41,137.4,3.06]
[1764094952519,2.67048286,137.45,137.41,3.06]
[1764094953032,5.31556028,137.44,137.41,3.06]
[1764094953234,2.94,137.44,137.39,3.11448165]
[1764094953629,0.05294394,137.43,137.39,3.11448165]
[1764094954138,0.05294394,137.43,137.42,3.06]
[1764094959031,6.5492,137.5,137.42,3.06]
[1764094959032,5.30638387,137.49,137.42,3.06]
[1764094959228,2.67048286,137.49,137.42,3.06]
[1764094959431,2.94,137.5,137.44,3.06]
[1764094959626,2.94,137.5,137.49,1.80507233]
[1764094959827,8.24342605,137.5,137.49,1.80511449]
[1764094960435,10.91390891,137.5,137.49,1.80511449]
[1764094962533,4.4,137.5,137.48,0.05312351]
[1764094962728,2.94,137.49,137.48,0.05312351]
[1764094963037,5.61048286,137.49,137.48,0.05312351]
[1764094964536,2.94,137.49,137.48,0.05312351]
[1764094964741,5.61048286,137.49,137.48,0.05312351]
[1764094965430,2.94,137.49,137.48,0.05312351]
[1764094966831,2.94,137.49,137.43,3.06]
[1764094967136,2.94,137.47,137.4,3.04]
[1764094967333,2.67048286,137.46,137.4,3.04]
[1764094967926,0.05438346,137.44,137.42,3.08746657]
[1764094968128,0.04632228,137.44,137.42,3.08684287]
[1764094969631,0.04632228,137.44,137.42,0.04684287]
[1764094970230,3.19632228,137.44,137.42,0.04684287]
[1764094970935,3.15,137.43,137.42,0.04684287]
[1764094971145,3.19632228,137.44,137.42,0.04684287]
[1764094971348,9.74832228,137.44,137.42,0.04684287]
[1764094972248,3.15,137.43,137.42,0.04684287]
[1764094973246,3.19632228,137.44,137.36,5.71048286]
[1764094973436,3.15,137.44,137.39,3.04]
[1764094974144,0.05157399,137.43,137.4,3.09146277]
[1764094974351,0.05118216,137.43,137.4,3.09106941]
[1764094975843,3.20118216,137.43,137.4,3.09106941]
[1764094976046,0.05118216,137.43,137.4,3.09106941]
[1764094977145,3.15,137.42,137.4,0.05106941]
[1764094977531,0.05118216,137.43,137.4,3.09106941]
[1764094978133,3.20118216,137.43,137.4,0.05106941]
[1764094978349,3.20118216,137.43,137.4,3.09106941]
[1764094978545,0.05118216,137.43,137.4,3.09106941]
[1764094978941,3.20118216,137.43,137.4,3.09106941]
[1764094979249,3.20118216,137.43,137.4,0.05106941]
[1764094979638,5.87166502,137.43,137.4,0.05106941]
[1764094979839,3.17,137.42,137.4,0.05106941]
[1764094980034,2.72166502,137.43,137.4,0.05106941]
[1764094980035,0.05118216,137.43,137.4,2.93106941]
[1764094980439,3.22118216,137.43,137.4,2.93106941]
[1764094981948,12.44426502,137.43,137.4,0.05106941]
[1764094982149,3.17,137.42,137.4,0.05106941]
[1764094982850,12.44426502,137.43,137.4,0.05106941]
[1764094983151,3.22118216,137.43,137.4,2.93106941]
[1764094983357,5.89166502,137.43,137.4,0.05106941]
[1764094983545,3.17,137.41,137.4,0.05106941]
[1764094984051,9.7234,137.41,137.4,0.05106941]
[1764094984556,12.39388286,137.41,137.4,0.05106941]
[1764094984747,9.7234,137.41,137.4,0.05106941]
[1764094987152,34.9434,137.41,137.4,0.05106941]
[1764094987754,3.17,137.39,137.33,2.88]
[1764094988452,9.7259,137.36,137.33,2.88]
[1764094988643,3.17,137.38,137.31,2.88]
[1764094988844,3.17,137.38,137.33,2.92954456]
[1764094988845,0.05112647,137.36,137.33,2.92954456]
[1764094989555,3.17,137.35,137.33,0.04954456]
[1764094989853,0.05112647,137.36,137.33,2.92954456]
[1764094990354,0.05112647,137.36,137.33,9.48674456]
[1764094990552,0.05112647,137.36,137.34,2.88]
[1764094991059,0.05112647,137.36,137.33,2.92954456]
[1764094991848,0.05112647,137.36,137.33,0.04954456]
[1764094991849,3.17,137.35,137.33,0.04954456]
[1764094992446,9.7263,137.35,137.33,0.04954456]
[1764094992642,3.17,137.35,137.33,0.04954456]
[1764094992847,0.05112647,137.36,137.33,2.92954456]
[1764094994154,0.05112647,137.36,137.34,2.88]
[1764094997658,3.11112647,137.36,137.33,2.98954456]
[1764094998043,3.11112647,137.36,137.33,0.04954456]
[1764094999053,3.00112647,137.36,137.33,2.98954456]
[1764094999445,3.00112647,137.36,137.33,0.04954456]
[1764095002656,2.95,137.35,137.33,0.04954456]
[1764095002860,28.17,137.35,137.33,0.04954456]
[1764095003047,2.95,137.34,137.33,0.04954456]
[1764095003556,25.22,137.35,137.33,2.98954456]
[1764095003749,0.05112647,137.36,137.33,9.54654456]
[1764095003949,0.05112647,137.36,137.34,2.94]
[1764095004450,0.05112647,137.36,137.33,0.04954456]
[1764095004451,3.00112647,137.36,137.33,0.04954456]
[1764095004856,9.55722647,137.36,137.33,0.04954456]
[1764095005360,2.95,137.35,137.33,0.04954456]
[1764095005555,9.5063,137.35,137.33,0.04954456]
[1764095005757,2.95,137.34,137.33,0.04954456]
[1764095008466,34.7263,137.35,137.33,0.04954456]
[1764095008766,25.22,137.35,137.33,0.04954456]
[1764095008966,28.17,137.35,137.33,0.04954456]
[1764095009266,2.95,137.34,137.33,0.04954456]
[1764095010263,31.7764,137.35,137.33,0.04954456]
[1764095010966,0.05112647,137.36,137.34,2.94]
[1764095011359,0.05112647,137.36,137.34,4.4]
[1764095011664,2.95,137.41,137.35,2.94]
[1764095011872,25.22,137.43,137.35,2.94]
[1764095012464,3.0,137.4,137.35,2.94]
[1764095012664,0.04639044,137.39,137.36,0.05587825]
[1764095013265,6.555,137.38,137.36,0.05587825]
[1764095013965,9.555,137.38,137.36,0.05587825]
[1764095014664,6.555,137.38,137.36,0.05587825]
[1764095015069,9.555,137.38,137.36,0.05587825]
[1764095015273,3.0,137.37,137.36,0.05587825]
[1764095015765,6.555,137.38,137.36,0.05587825]
[1764095016171,6.555,137.38,137.36,2.99587825]
[1764095016569,9.555,137.38,137.36,0.05587825]
[1764095016766,3.0,137.37,137.36,0.05587825]
[1764095017165,6.555,137.38,137.36,0.05587825]
[1764095018573,3.0,137.37,137.36,0.05587825]
[1764095019267,28.26639044,137.39,137.36,0.05587825]
[1764095019464,3.0,137.38,137.36,0.05587825]
[1764095019864,6.5549,137.38,137.36,0.05587825]
[1764095020068,6.5549,137.38,137.36,2.99587825]
[1764095020267,6.5549,137.38,137.36,0.05587825]
[1764095021077,9.5549,137.38,137.36,0.05587825]
[1764095021275,3.0,137.38,137.36,0.05587825]
[1764095021578,28.26639044,137.39,137.36,0.05587825]
[1764095022080,3.0,137.38,137.36,0.05587825]
[1764095022774,34.82089044,137.39,137.36,0.05587825]
[1764095022981,3.0,137.38,137.36,0.05587825]
[1764095023278,9.555,137.38,137.36,0.05587825]
[1764095023478,3.0,137.37,137.36,0.05587825]
[1764095023882,25.26639044,137.39,137.36,0.05587825]
[1764095024179,28.26639044,137.39,137.36,0.05587825]
[1764095024879,34.82089044,137.39,137.36,2.99587825]
[1764095026076,25.26639044,137.39,137.36,2.99587825]
[1764095027275,2.99,137.38,137.36,0.05587825]
[1764095027677,9.545,137.38,137.36,0.05587825]
[1764095027876,2.99,137.37,137.36,0.05587825]
[1764095035285,2.99,137.35,137.31,3.11]
[1764095036079,2.99,137.35,137.31,9.6681]
[1764095036278,3.04602458,137.34,137.32,0.04613239]
[1764095036879,0.05602458,137.34,137.32,3.15613239]
[1764095038591,104.9435,137.4,137.33,3.11]
[1764095038793,8.28453166,137.39,137.33,3.11]